[Event "*** Titled Tuesday Blitz"]
[Site "Chess.com"]
[Date "2020.11.24"]
[Round "11"]
[White "canary2016"]
[Black "Stormeman100100"]
[Result "0-1"]
[WhiteElo "2000"]
[BlackElo "2520"]
[TimeControl "180+1"]
[EndTime "12:24:09 PST"]
[Termination "Stormeman100100 won on time"]

1. Nf3 {[%clk 0:03:00.9]} 1... d5 {[%clk 0:02:58.5]} 2. c4 {[%clk 0:02:59.6]}
2... c6 {[%clk 0:02:57.7]} 3. d4 {[%clk 0:02:59.1]} 3... Nf6 {[%clk 0:02:57.6]}
4. g3 {[%clk 0:02:58.7]} 4... e6 {[%clk 0:02:46.8]} 5. Bg2 {[%clk 0:02:57.8]}
5... dxc4 {[%clk 0:02:47.1]} 6. O-O {[%clk 0:02:57.2]} 6... b5 {[%clk
0:02:46.6]} 7. a4 {[%clk 0:02:56]} 7... Bb7 {[%clk 0:02:45.8]} 8. Ne5 {[%clk
0:02:53.3]} 8... Qc8 {[%clk 0:02:45.2]} 9. Qc2 {[%clk 0:02:43.6]} 9... a6 {[%clk
0:02:42.7]} 10. Bf4 {[%clk 0:02:37.7]} 10... Nbd7 {[%clk 0:02:39.9]} 11. Nc3
{[%clk 0:02:27.3]} 11... Be7 {[%clk 0:02:30]} 12. Rfd1 {[%clk 0:02:08.6]} 12...
O-O {[%clk 0:02:24.7]} 13. Ne4 {[%clk 0:02:06]} 13... c5 {[%clk 0:02:11.2]} 14.
Nxd7 {[%clk 0:01:52.8]} 14... Nxd7 {[%clk 0:02:09]} 15. dxc5 {[%clk 0:01:50.2]}
15... Nxc5 {[%clk 0:02:07.9]} 16. Nxc5 {[%clk 0:01:38.3]} 16... Bxc5 {[%clk
0:02:05.6]} 17. Bxb7 {[%clk 0:01:35.1]} 17... Qxb7 {[%clk 0:02:06.5]} 18. Rd2
{[%clk 0:01:32.6]} 18... Rfd8 {[%clk 0:01:50.2]} 19. Rad1 {[%clk 0:01:31.7]}
19... Qb6 {[%clk 0:01:47.4]} 20. e3 {[%clk 0:01:26.9]} 20... Be7 {[%clk
0:01:45.9]} 21. Rd7 {[%clk 0:01:18.6]} 21... Rxd7 {[%clk 0:01:42.2]} 22. Rxd7
{[%clk 0:01:17.4]} 22... Bf6 {[%clk 0:01:42.5]} 23. Bc7 {[%clk 0:01:01.9]} 23...
Qc6 {[%clk 0:01:40.7]} 24. Qd1 {[%clk 0:00:43.3]} 24... h6 {[%clk 0:01:28.5]}
25. axb5 {[%clk 0:00:42]} 25... axb5 {[%clk 0:01:20.2]} 26. Bd8 {[%clk
0:00:41.2]} 26... Bxb2 {[%clk 0:00:51.2]} 27. Rc7 {[%clk 0:00:28.1]} 27... Qd5
{[%clk 0:00:46.3]} 28. Rd7 {[%clk 0:00:08.9]} 28... Qxd1+ {[%clk 0:00:42.5]} 29.
Rxd1 {[%clk 0:00:08.4]} 29... c3 {[%clk 0:00:42.2]} 30. Bb6 {[%clk 0:00:04]}
30... c2 {[%clk 0:00:41.7]} 31. Rd7 {[%clk 0:00:01.4]} 31... c1=Q+ {[%clk
0:00:41]} 32. Kg2 {[%clk 0:00:02.3]} 32... Qc6+ {[%clk 0:00:41.5]} 33. f3 {[%clk
0:00:01.1]} 33... Qxd7 {[%clk 0:00:41.7]} 34. Kf2 {[%clk 0:00:01.3]} 34... Qc6
{[%clk 0:00:42.6]} 0-1

[Event "*** Titled Tuesday Blitz"]
[Site "Chess.com"]
[Date "2020.11.24"]
[Round "11"]
[White "IceBelka"]
[Black "zala02"]
[Result "1-0"]
[WhiteElo "2328"]
[BlackElo "2159"]
[TimeControl "180+1"]
[EndTime "12:24:10 PST"]
[Termination "IceBelka won by resignation"]

1. e4 {[%clk 0:03:00.9]} 1... c5 {[%clk 0:03:00]} 2. Nf3 {[%clk 0:02:59.7]} 2...
Nc6 {[%clk 0:03:00]} 3. d4 {[%clk 0:03:00.2]} 3... cxd4 {[%clk 0:03:00.2]} 4.
Nxd4 {[%clk 0:03:01.1]} 4... Nf6 {[%clk 0:03:00.6]} 5. Nc3 {[%clk 0:03:00.3]}
5... e5 {[%clk 0:03:00.9]} 6. Ndb5 {[%clk 0:02:59.6]} 6... d6 {[%clk 0:03:01.4]}
7. Bg5 {[%clk 0:02:56.9]} 7... a6 {[%clk 0:03:01.8]} 8. Na3 {[%clk 0:02:56.7]}
8... b5 {[%clk 0:03:02.3]} 9. Nd5 {[%clk 0:02:56.1]} 9... Be7 {[%clk 0:03:02.8]}
10. Bxf6 {[%clk 0:02:54.9]} 10... Bxf6 {[%clk 0:03:03.5]} 11. c4 {[%clk
0:02:55.3]} 11... b4 {[%clk 0:02:58.5]} 12. Nc2 {[%clk 0:02:55.7]} 12... O-O
{[%clk 0:02:54.1]} 13. g3 {[%clk 0:02:55.6]} 13... a5 {[%clk 0:02:46.3]} 14. Bg2
{[%clk 0:02:55]} 14... Bg5 {[%clk 0:02:46.4]} 15. O-O {[%clk 0:02:54.3]} 15...
Be6 {[%clk 0:02:45]} 16. f4 {[%clk 0:02:49.3]} 16... exf4 {[%clk 0:02:44]} 17.
gxf4 {[%clk 0:02:49.6]} 17... Bh6 {[%clk 0:02:44.3]} 18. Nce3 {[%clk 0:02:46.6]}
18... Ne7 {[%clk 0:02:23.6]} 19. Qd4 {[%clk 0:02:25.8]} 19... Rc8 {[%clk
0:02:12.2]} 20. Rad1 {[%clk 0:02:18.7]} 20... f5 {[%clk 0:01:13.1]} 21. b3
{[%clk 0:01:46.6]} 21... fxe4 {[%clk 0:01:05.1]} 22. Bxe4 {[%clk 0:01:21.7]}
22... Nf5 {[%clk 0:00:55.4]} 23. Nxf5 {[%clk 0:01:16.3]} 23... Bxf5 {[%clk
0:00:56.3]} 24. Bxf5 {[%clk 0:01:10.5]} 24... Rxf5 {[%clk 0:00:57.2]} 25. Ne3
{[%clk 0:01:08.5]} 25... Rf6 {[%clk 0:00:49.8]} 26. Kh1 {[%clk 0:00:57.9]} 26...
Rg6 {[%clk 0:00:34.7]} 27. Nf5 {[%clk 0:00:39.8]} 27... Rc5 {[%clk 0:00:24.2]}
28. Qxc5 {[%clk 0:00:35.5]} 28... Qe8 {[%clk 0:00:10.5]} 29. Qd5+ {[%clk
0:00:33]} 29... Kh8 {[%clk 0:00:09.6]} 30. Nxh6 {[%clk 0:00:32.9]} 30... Rxh6
{[%clk 0:00:10]} 31. Rde1 {[%clk 0:00:30.1]} 1-0

[Event "*** Titled Tuesday Blitz"]
[Site "Chess.com"]
[Date "2020.11.24"]
[Round "11"]
[White "Sharpchess22"]
[Black "DenisQ"]
[Result "1-0"]
[WhiteElo "2823"]
[BlackElo "2676"]
[TimeControl "180+1"]
[EndTime "12:24:16 PST"]
[Termination "Sharpchess22 won on time"]

1. e4 {[%clk 0:03:00.9]} 1... c6 {[%clk 0:02:57.5]} 2. d4 {[%clk 0:03:00.2]}
2... d5 {[%clk 0:02:58.4]} 3. e5 {[%clk 0:02:58.8]} 3... Bf5 {[%clk 0:02:56.7]}
4. Nf3 {[%clk 0:02:58.2]} 4... e6 {[%clk 0:02:56.4]} 5. Be2 {[%clk 0:02:58.1]}
5... Nd7 {[%clk 0:02:55.3]} 6. c3 {[%clk 0:02:56.7]} 6... Ne7 {[%clk 0:02:54.2]}
7. O-O {[%clk 0:02:55.9]} 7... h6 {[%clk 0:02:52.4]} 8. b4 {[%clk 0:02:53.8]}
8... a5 {[%clk 0:02:47.9]} 9. b5 {[%clk 0:02:54]} 9... c5 {[%clk 0:02:42.5]} 10.
Na3 {[%clk 0:02:48.2]} 10... c4 {[%clk 0:02:40.9]} 11. Nc2 {[%clk 0:02:47.8]}
11... Nb6 {[%clk 0:02:28.1]} 12. a4 {[%clk 0:02:36.9]} 12... Bh7 {[%clk
0:02:25.9]} 13. Ba3 {[%clk 0:02:35.4]} 13... Nf5 {[%clk 0:02:22.8]} 14. Bxf8
{[%clk 0:02:34]} 14... Rxf8 {[%clk 0:02:21.9]} 15. Qd2 {[%clk 0:02:12.2]} 15...
Nh4 {[%clk 0:02:15.3]} 16. Nxh4 {[%clk 0:02:07]} 16... Qxh4 {[%clk 0:02:13.9]}
17. Ne3 {[%clk 0:02:06.6]} 17... Kd7 {[%clk 0:02:05]} 18. f4 {[%clk 0:02:05]}
18... Be4 {[%clk 0:01:50.9]} 19. g3 {[%clk 0:01:54.2]} 19... Qe7 {[%clk
0:01:49.2]} 20. f5 {[%clk 0:01:52]} 20... Qg5 {[%clk 0:01:45]} 21. f6 {[%clk
0:01:49.3]} 21... gxf6 {[%clk 0:01:11.4]} 22. Rxf6 {[%clk 0:01:47.8]} 22... Kc7
{[%clk 0:00:52.1]} 23. Raf1 {[%clk 0:01:30.2]} 23... Nd7 {[%clk 0:00:43]} 24.
Rxh6 {[%clk 0:01:26.5]} 24... Rg8 {[%clk 0:00:30.7]} 25. Rxf7 {[%clk 0:01:22.3]}
25... Raf8 {[%clk 0:00:20.2]} 26. Rxf8 {[%clk 0:01:21.5]} 26... Nxf8 {[%clk
0:00:21.1]} 27. Rf6 {[%clk 0:01:18.6]} 27... Kc8 {[%clk 0:00:13.6]} 28. Bg4
{[%clk 0:01:14.2]} 28... Kb8 {[%clk 0:00:10.9]} 29. Qf2 {[%clk 0:01:13.5]} 29...
Nd7 {[%clk 0:00:04.9]} 30. Rf7 {[%clk 0:01:08.6]} 30... Nb6 {[%clk 0:00:05.1]}
31. Bxe6 {[%clk 0:01:07.9]} 31... Nxa4 {[%clk 0:00:04.8]} 32. Nxd5 {[%clk
0:00:58.8]} 32... Qc1+ {[%clk 0:00:01.8]} 33. Qf1 {[%clk 0:00:58.7]} 33... Qd2
{[%clk 0:00:01.1]} 34. Rf2 {[%clk 0:00:43.4]} 34... Qd3 {[%clk 0:00:01.3]} 35.
Nf4 {[%clk 0:00:41.5]} 1-0

[Event "*** Titled Tuesday Blitz"]
[Site "Chess.com"]
[Date "2020.11.24"]
[Round "11"]
[White "GMKrikor"]
[Black "Shuvalov"]
[Result "1-0"]
[WhiteElo "2696"]
[BlackElo "2449"]
[TimeControl "180+1"]
[EndTime "12:24:16 PST"]
[Termination "GMKrikor won by resignation"]

1. e4 {[%clk 0:03:00.9]} 1... e6 {[%clk 0:02:51.8]} 2. d4 {[%clk 0:02:59.7]}
2... d5 {[%clk 0:02:51.9]} 3. Nc3 {[%clk 0:02:56.7]} 3... Bb4 {[%clk 0:02:50.9]}
4. e5 {[%clk 0:02:51.7]} 4... c5 {[%clk 0:02:50.3]} 5. a3 {[%clk 0:02:49.5]}
5... Bxc3+ {[%clk 0:02:50.2]} 6. bxc3 {[%clk 0:02:50.4]} 6... Ne7 {[%clk
0:02:49]} 7. Qg4 {[%clk 0:02:47.1]} 7... cxd4 {[%clk 0:02:47.3]} 8. Bd3 {[%clk
0:02:42.1]} 8... Qa5 {[%clk 0:02:44.2]} 9. Ne2 {[%clk 0:02:40.9]} 9... O-O
{[%clk 0:02:42.1]} 10. O-O {[%clk 0:02:36.2]} 10... Nbc6 {[%clk 0:02:37.6]} 11.
cxd4 {[%clk 0:02:33.2]} 11... b6 {[%clk 0:02:28.5]} 12. Rd1 {[%clk 0:01:50.1]}
12... Qa4 {[%clk 0:01:21]} 13. Nc3 {[%clk 0:01:45.7]} 13... Qa5 {[%clk
0:01:14.5]} 14. Bd2 {[%clk 0:01:41.1]} 14... Ng6 {[%clk 0:00:55]} 15. h4 {[%clk
0:01:33.7]} 15... f5 {[%clk 0:00:43.9]} 16. exf6 {[%clk 0:01:28.7]} 16... e5
{[%clk 0:00:28.2]} 17. Qg3 {[%clk 0:01:04.8]} 17... exd4 {[%clk 0:00:23.7]} 18.
fxg7 {[%clk 0:00:57.8]} 18... Rf7 {[%clk 0:00:19.5]} 19. h5 {[%clk 0:00:46.8]}
19... dxc3 {[%clk 0:00:18.6]} 20. hxg6 {[%clk 0:00:46.4]} 20... Rxg7 {[%clk
0:00:17.5]} 21. Bh6 {[%clk 0:00:36.9]} 21... hxg6 {[%clk 0:00:15]} 22. Bxg7
{[%clk 0:00:32.1]} 22... Kxg7 {[%clk 0:00:15.9]} 23. Qxg6+ {[%clk 0:00:31.5]}
23... Kf8 {[%clk 0:00:16.6]} 24. Qf6+ {[%clk 0:00:28.7]} 24... Ke8 {[%clk
0:00:16.6]} 25. Qxc6+ {[%clk 0:00:28.5]} 25... Kd8 {[%clk 0:00:15.2]} 26. Qxa8
{[%clk 0:00:26.9]} 26... Kc7 {[%clk 0:00:15.2]} 27. Re1 {[%clk 0:00:21]} 27...
Bd7 {[%clk 0:00:14.5]} 28. Re7 {[%clk 0:00:20.6]} 28... Qa4 {[%clk 0:00:14]} 29.
Bf5 {[%clk 0:00:18]} 1-0

[Event "*** Titled Tuesday Blitz"]
[Site "Chess.com"]
[Date "2020.11.24"]
[Round "11"]
[White "vladgoncharov"]
[Black "Fortitudine"]
[Result "1-0"]
[WhiteElo "2474"]
[BlackElo "2354"]
[TimeControl "180+1"]
[EndTime "12:24:22 PST"]
[Termination "vladgoncharov won by resignation"]

1. d4 {[%clk 0:03:00.9]} 1... Nf6 {[%clk 0:02:59]} 2. c4 {[%clk 0:03:01]} 2...
c5 {[%clk 0:02:59.2]} 3. Nf3 {[%clk 0:02:59.6]} 3... cxd4 {[%clk 0:02:58.9]} 4.
Nxd4 {[%clk 0:02:59.7]} 4... e5 {[%clk 0:02:59.3]} 5. Nb5 {[%clk 0:02:59.7]}
5... d5 {[%clk 0:02:59.8]} 6. cxd5 {[%clk 0:02:58.8]} 6... Bc5 {[%clk
0:03:00.4]} 7. e3 {[%clk 0:02:58.3]} 7... e4 {[%clk 0:02:54.1]} 8. a3 {[%clk
0:02:50.2]} 8... O-O {[%clk 0:02:49.9]} 9. b4 {[%clk 0:02:49.8]} 9... Bb6 {[%clk
0:02:44.2]} 10. N5c3 {[%clk 0:02:46.6]} 10... Nbd7 {[%clk 0:02:40.8]} 11. Bb2
{[%clk 0:02:45.1]} 11... Re8 {[%clk 0:02:30.6]} 12. Na4 {[%clk 0:02:38]} 12...
Ne5 {[%clk 0:02:18.5]} 13. Nxb6 {[%clk 0:02:37.6]} 13... Qxb6 {[%clk 0:02:18.5]}
14. Nc3 {[%clk 0:02:30.2]} 14... Bg4 {[%clk 0:02:13.4]} 15. Qd2 {[%clk
0:02:29.6]} 15... Rad8 {[%clk 0:02:09.1]} 16. Bb5 {[%clk 0:02:15.9]} 16... Re7
{[%clk 0:01:37.7]} 17. h3 {[%clk 0:02:11]} 17... Bd7 {[%clk 0:01:34.4]} 18. Bxd7
{[%clk 0:02:07.4]} 18... Nd3+ {[%clk 0:01:31.3]} 19. Kf1 {[%clk 0:01:57.2]}
19... Rexd7 {[%clk 0:01:00.5]} 20. g3 {[%clk 0:01:56.8]} 20... Nxb2 {[%clk
0:00:50.4]} 21. Qxb2 {[%clk 0:01:53.9]} 21... Nxd5 {[%clk 0:00:46.3]} 22. Nxd5
{[%clk 0:01:52.2]} 22... Rxd5 {[%clk 0:00:45.9]} 23. Kg2 {[%clk 0:01:52.6]}
23... Rd2 {[%clk 0:00:42.3]} 24. Qc3 {[%clk 0:01:44]} 24... Qe6 {[%clk
0:00:34.3]} 25. Rhf1 {[%clk 0:01:34.2]} 25... Qf5 {[%clk 0:00:31.5]} 26. Qc7
{[%clk 0:01:32.4]} 26... Qf3+ {[%clk 0:00:30.1]} 27. Kg1 {[%clk 0:01:32.5]}
27... g5 {[%clk 0:00:20.5]} 28. Qxb7 {[%clk 0:01:24.5]} 28... h5 {[%clk
0:00:17.8]} 29. Qe7 {[%clk 0:01:22]} 29... R8d5 {[%clk 0:00:15.7]} 30. Rac1
{[%clk 0:01:20.6]} 30... Rd1 {[%clk 0:00:09.7]} 31. Rcxd1 {[%clk 0:01:18.8]}
31... Rxd1 {[%clk 0:00:10.6]} 32. Qxg5+ {[%clk 0:01:18.7]} 32... Kf8 {[%clk
0:00:07.5]} 33. Rxd1 {[%clk 0:01:18.3]} 33... Qxd1+ {[%clk 0:00:08.4]} 34. Kh2
{[%clk 0:01:18.5]} 34... Qf3 {[%clk 0:00:08.9]} 35. Qf4 {[%clk 0:01:18.3]} 35...
Qxf4 {[%clk 0:00:04.5]} 36. gxf4 {[%clk 0:01:14.7]} 36... h4 {[%clk 0:00:04]}
37. Kg2 {[%clk 0:01:12.6]} 37... f5 {[%clk 0:00:04]} 38. f3 {[%clk 0:01:12.8]}
38... Ke7 {[%clk 0:00:04.4]} 39. fxe4 {[%clk 0:01:11.7]} 39... fxe4 {[%clk
0:00:05.3]} 40. Kf2 {[%clk 0:01:11.9]} 40... Kd6 {[%clk 0:00:05.5]} 41. Ke2
{[%clk 0:01:12.5]} 41... Kd5 {[%clk 0:00:05.5]} 42. Kd2 {[%clk 0:01:13.4]} 42...
Kc4 {[%clk 0:00:05.8]} 43. Kc2 {[%clk 0:01:13.5]} 43... a6 {[%clk 0:00:05.9]}
44. f5 {[%clk 0:01:09.6]} 44... Kd5 {[%clk 0:00:05.9]} 45. Kc3 {[%clk
0:01:09.9]} 45... Ke5 {[%clk 0:00:05.7]} 46. Kc4 {[%clk 0:01:09.9]} 46... Kxf5
{[%clk 0:00:06.3]} 47. Kd5 {[%clk 0:01:10]} 47... Kf6 {[%clk 0:00:05.3]} 48.
Kxe4 {[%clk 0:01:10.9]} 1-0

[Event "*** Titled Tuesday Blitz"]
[Site "Chess.com"]
[Date "2020.11.24"]
[Round "11"]
[White "Fy_Rakotomaharo"]
[Black "MokshanovAlexey"]
[Result "1-0"]
[WhiteElo "2698"]
[BlackElo "2609"]
[TimeControl "180+1"]
[EndTime "12:24:23 PST"]
[Termination "Fy_Rakotomaharo won by resignation"]

1. e4 {[%clk 0:03:00.9]} 1... e6 {[%clk 0:03:00.2]} 2. d4 {[%clk 0:03:01.1]}
2... d5 {[%clk 0:03:00.5]} 3. Nc3 {[%clk 0:03:02]} 3... Nf6 {[%clk 0:03:00.6]}
4. Bg5 {[%clk 0:03:01.2]} 4... Be7 {[%clk 0:03:00.5]} 5. e5 {[%clk 0:03:01.2]}
5... Nfd7 {[%clk 0:03:00.8]} 6. h4 {[%clk 0:03:01.7]} 6... Nc6 {[%clk
0:03:01.1]} 7. Be3 {[%clk 0:02:56.8]} 7... f6 {[%clk 0:02:53.2]} 8. exf6 {[%clk
0:02:46.3]} 8... Nxf6 {[%clk 0:02:50.7]} 9. h5 {[%clk 0:02:30.6]} 9... e5 {[%clk
0:02:46.4]} 10. dxe5 {[%clk 0:02:30.6]} 10... Nxe5 {[%clk 0:02:46.2]} 11. h6
{[%clk 0:02:31.5]} 11... g6 {[%clk 0:02:37.3]} 12. Qd4 {[%clk 0:02:31.5]} 12...
Bd6 {[%clk 0:02:08.2]} 13. Nb5 {[%clk 0:02:31.3]} 13... O-O {[%clk 0:01:56.2]}
14. Nxd6 {[%clk 0:02:29.9]} 14... Qxd6 {[%clk 0:01:55.4]} 15. O-O-O {[%clk
0:02:30.5]} 15... c6 {[%clk 0:01:45.6]} 16. Nf3 {[%clk 0:02:19.8]} 16... Nxf3
{[%clk 0:01:44]} 17. gxf3 {[%clk 0:02:20.7]} 17... Bf5 {[%clk 0:01:44.1]} 18.
Bf4 {[%clk 0:02:04.5]} 18... Qd8 {[%clk 0:01:40.5]} 19. Bg5 {[%clk 0:02:03.9]}
19... Rf7 {[%clk 0:01:21]} 20. Rg1 {[%clk 0:01:54.3]} 20... Qd6 {[%clk
0:01:12.4]} 21. Bf4 {[%clk 0:01:53.1]} 21... Qd8 {[%clk 0:01:12.5]} 22. Re1
{[%clk 0:01:48]} 22... Qa5 {[%clk 0:01:08]} 23. Bd3 {[%clk 0:01:41.4]} 23...
Bxd3 {[%clk 0:01:03.6]} 24. Qxd3 {[%clk 0:01:42.3]} 24... Ng4 {[%clk 0:00:35.7]}
25. Bd2 {[%clk 0:00:47.3]} 25... Qxa2 {[%clk 0:00:34.5]} 26. c3 {[%clk
0:00:47.8]} 26... Ne5 {[%clk 0:00:22]} 27. Rxe5 {[%clk 0:00:41.8]} 27... Qa1+
{[%clk 0:00:22.2]} 28. Qb1 {[%clk 0:00:42.3]} 28... Qxb1+ {[%clk 0:00:21.1]} 29.
Kxb1 {[%clk 0:00:43.2]} 29... Rxf3 {[%clk 0:00:21.5]} 30. Re7 {[%clk 0:00:43.5]}
30... Rf7 {[%clk 0:00:17.7]} 31. Rge1 {[%clk 0:00:41.1]} 31... Raf8 {[%clk
0:00:17.1]} 32. Bg5 {[%clk 0:00:40.3]} 32... Rxe7 {[%clk 0:00:14.5]} 33. Rxe7
{[%clk 0:00:41.2]} 33... Rf7 {[%clk 0:00:15]} 34. Re8+ {[%clk 0:00:35.2]} 34...
Rf8 {[%clk 0:00:15.3]} 35. Re2 {[%clk 0:00:35.9]} 35... Rf5 {[%clk 0:00:15.4]}
36. f4 {[%clk 0:00:36.2]} 36... Kf8 {[%clk 0:00:13.6]} 37. Kc2 {[%clk
0:00:35.5]} 37... b5 {[%clk 0:00:12.9]} 38. b4 {[%clk 0:00:34.9]} 38... a6
{[%clk 0:00:12.9]} 39. Kd3 {[%clk 0:00:35.1]} 1-0

[Event "*** Titled Tuesday Blitz"]
[Site "Chess.com"]
[Date "2020.11.24"]
[Round "11"]
[White "Marty435"]
[Black "profofchess"]
[Result "1-0"]
[WhiteElo "2522"]
[BlackElo "2388"]
[TimeControl "180+1"]
[EndTime "12:24:24 PST"]
[Termination "Marty435 won on time"]

1. b3 {[%clk 0:03:00.9]} 1... e5 {[%clk 0:03:00]} 2. Bb2 {[%clk 0:02:59.4]} 2...
Nc6 {[%clk 0:03:00.6]} 3. Nf3 {[%clk 0:02:59.7]} 3... e4 {[%clk 0:02:58.8]} 4.
Nd4 {[%clk 0:02:59.9]} 4... Nxd4 {[%clk 0:02:58.9]} 5. Bxd4 {[%clk 0:03:00.8]}
5... d5 {[%clk 0:02:49.5]} 6. e3 {[%clk 0:03:00.8]} 6... Nf6 {[%clk 0:02:37.1]}
7. c4 {[%clk 0:02:59.6]} 7... c5 {[%clk 0:02:34.9]} 8. Bxf6 {[%clk 0:02:59.4]}
8... Qxf6 {[%clk 0:02:35.6]} 9. Nc3 {[%clk 0:03:00.2]} 9... d4 {[%clk
0:02:36.1]} 10. Nxe4 {[%clk 0:03:00.2]} 10... Qe5 {[%clk 0:02:36.7]} 11. Bd3
{[%clk 0:02:48.8]} 11... dxe3 {[%clk 0:02:29.6]} 12. fxe3 {[%clk 0:02:32.9]}
12... Bf5 {[%clk 0:02:14.3]} 13. Nf2 {[%clk 0:02:29]} 13... O-O-O {[%clk
0:01:59.8]} 14. Bxf5+ {[%clk 0:02:27.3]} 14... Qxf5 {[%clk 0:02:00.7]} 15. O-O
{[%clk 0:02:25.8]} 15... h5 {[%clk 0:01:29.1]} 16. d3 {[%clk 0:02:20]} 16... Qe5
{[%clk 0:01:05.8]} 17. Qf3 {[%clk 0:02:16.5]} 17... Bd6 {[%clk 0:01:05]} 18. g3
{[%clk 0:02:00.9]} 18... f5 {[%clk 0:01:00.8]} 19. Nh3 {[%clk 0:01:56]} 19... g6
{[%clk 0:00:59.5]} 20. Nf4 {[%clk 0:01:48.5]} 20... Qf6 {[%clk 0:00:49.7]} 21.
Nd5 {[%clk 0:01:46.1]} 21... Qf7 {[%clk 0:00:50]} 22. Rae1 {[%clk 0:01:39.7]}
22... h4 {[%clk 0:00:49.3]} 23. g4 {[%clk 0:01:36.7]} 23... Rdf8 {[%clk
0:00:41]} 24. Kh1 {[%clk 0:01:31.8]} 24... Qe6 {[%clk 0:00:36.8]} 25. gxf5
{[%clk 0:01:27.9]} 25... Rxf5 {[%clk 0:00:34]} 26. Qh3 {[%clk 0:01:16.6]} 26...
Rxf1+ {[%clk 0:00:33.6]} 27. Qxf1 {[%clk 0:01:17.5]} 27... Rf8 {[%clk
0:00:33.7]} 28. Qg2 {[%clk 0:01:15]} 28... h3 {[%clk 0:00:33.8]} 29. Qe2 {[%clk
0:00:57.4]} 29... Qf5 {[%clk 0:00:28.3]} 30. Kg1 {[%clk 0:00:45]} 30... Qg5+
{[%clk 0:00:25.5]} 31. Kh1 {[%clk 0:00:45.5]} 31... Qh4 {[%clk 0:00:21.1]} 32.
Rf1 {[%clk 0:00:43.4]} 32... Rxf1+ {[%clk 0:00:16.2]} 33. Qxf1 {[%clk
0:00:44.3]} 33... Qg4 {[%clk 0:00:12.3]} 34. Nf6 {[%clk 0:00:37.8]} 34... Qe6
{[%clk 0:00:08.5]} 35. Ne4 {[%clk 0:00:37.6]} 35... Be5 {[%clk 0:00:04.3]} 36.
Ng5 {[%clk 0:00:36.5]} 36... Qg4 {[%clk 0:00:03.7]} 37. Qxh3 {[%clk 0:00:36.2]}
37... Qxh3 {[%clk 0:00:01.9]} 38. Nxh3 {[%clk 0:00:37.1]} 38... Bc3 {[%clk
0:00:01.3]} 39. Kg2 {[%clk 0:00:37.2]} 1-0

[Event "*** Titled Tuesday Blitz"]
[Site "Chess.com"]
[Date "2020.11.24"]
[Round "11"]
[White "Julianos82"]
[Black "Vuk2000"]
[Result "1-0"]
[WhiteElo "2380"]
[BlackElo "2701"]
[TimeControl "180+1"]
[EndTime "12:24:28 PST"]
[Termination "Julianos82 won on time"]

1. d4 {[%clk 0:03:00.9]} 1... Nf6 {[%clk 0:03:00]} 2. Nf3 {[%clk 0:03:00.9]}
2... e6 {[%clk 0:03:00.1]} 3. Bg5 {[%clk 0:03:00.2]} 3... d5 {[%clk 0:02:59.6]}
4. Nbd2 {[%clk 0:02:59.5]} 4... c5 {[%clk 0:02:58]} 5. e3 {[%clk 0:02:59.3]}
5... Be7 {[%clk 0:02:55.1]} 6. c3 {[%clk 0:02:58.3]} 6... O-O {[%clk 0:02:55.5]}
7. Ne5 {[%clk 0:02:56.8]} 7... Nfd7 {[%clk 0:02:52.2]} 8. Bf4 {[%clk 0:02:52.9]}
8... Nc6 {[%clk 0:02:50.4]} 9. Bd3 {[%clk 0:02:51.7]} 9... f6 {[%clk 0:02:41.2]}
10. Qh5 {[%clk 0:02:33.5]} 10... f5 {[%clk 0:02:41.1]} 11. Nxd7 {[%clk
0:02:21.6]} 11... Bxd7 {[%clk 0:02:40.3]} 12. Nf3 {[%clk 0:02:14.4]} 12... Be8
{[%clk 0:02:35.8]} 13. Qh3 {[%clk 0:02:06.2]} 13... Bd6 {[%clk 0:02:07.3]} 14.
Ng5 {[%clk 0:01:53.6]} 14... h6 {[%clk 0:02:07.3]} 15. Nxe6 {[%clk 0:01:51.2]}
15... Qe7 {[%clk 0:02:07.5]} 16. Bxd6 {[%clk 0:01:46.2]} 16... Qxd6 {[%clk
0:01:44.5]} 17. Nxf8 {[%clk 0:01:44.9]} 17... cxd4 {[%clk 0:01:11]} 18. Qxf5
{[%clk 0:01:34.3]} 18... Qxf8 {[%clk 0:00:43.3]} 19. cxd4 {[%clk 0:01:16.5]}
19... Qb4+ {[%clk 0:00:38.9]} 20. Ke2 {[%clk 0:01:12.2]} 20... Qxb2+ {[%clk
0:00:29.9]} 21. Kf3 {[%clk 0:01:12.3]} 21... Qa3 {[%clk 0:00:18.1]} 22. Qh7+
{[%clk 0:01:01.3]} 22... Kf7 {[%clk 0:00:14.8]} 23. Rab1 {[%clk 0:00:54]} 23...
b6 {[%clk 0:00:14.6]} 24. Rhc1 {[%clk 0:00:52.6]} 24... Qd6 {[%clk 0:00:13.5]}
25. Ke2 {[%clk 0:00:40.5]} 25... Bd7 {[%clk 0:00:12.5]} 26. Rb5 {[%clk
0:00:34.2]} 26... Re8 {[%clk 0:00:11]} 27. Kf1 {[%clk 0:00:33.5]} 27... Ne7
{[%clk 0:00:10.3]} 28. Rb3 {[%clk 0:00:31.7]} 28... b5 {[%clk 0:00:05.1]} 29.
Rbc3 {[%clk 0:00:31.7]} 29... b4 {[%clk 0:00:04.4]} 30. Rc7 {[%clk 0:00:31.6]}
30... Bc6 {[%clk 0:00:04.2]} 31. R1xc6 {[%clk 0:00:28.9]} 31... Qxh2 {[%clk
0:00:01.1]} 32. Bg6+ {[%clk 0:00:25.7]} 1-0

[Event "*** Titled Tuesday Blitz"]
[Site "Chess.com"]
[Date "2020.11.24"]
[Round "11"]
[White "Gabrielian_Artur"]
[Black "MPGM"]
[Result "0-1"]
[WhiteElo "2756"]
[BlackElo "2644"]
[TimeControl "180+1"]
[EndTime "12:24:29 PST"]
[Termination "MPGM won by checkmate"]

1. e4 {[%clk 0:03:00.9]} 1... c6 {[%clk 0:02:59.9]} 2. d4 {[%clk 0:02:59.6]}
2... d5 {[%clk 0:03:00.8]} 3. e5 {[%clk 0:02:59.7]} 3... c5 {[%clk 0:03:00.9]}
4. dxc5 {[%clk 0:02:59.2]} 4... e6 {[%clk 0:03:01.2]} 5. a3 {[%clk 0:02:57.6]}
5... Bxc5 {[%clk 0:03:00.4]} 6. Bd3 {[%clk 0:02:57.5]} 6... Ne7 {[%clk
0:02:58.9]} 7. Nf3 {[%clk 0:02:57.1]} 7... a6 {[%clk 0:02:58.6]} 8. O-O {[%clk
0:02:56.1]} 8... Ng6 {[%clk 0:02:57.5]} 9. Re1 {[%clk 0:02:55.3]} 9... O-O
{[%clk 0:02:57.2]} 10. Nc3 {[%clk 0:02:51.3]} 10... Nc6 {[%clk 0:02:52.8]} 11.
Qe2 {[%clk 0:02:47.2]} 11... f6 {[%clk 0:02:21.9]} 12. Bxg6 {[%clk 0:02:40.7]}
12... hxg6 {[%clk 0:02:22.8]} 13. exf6 {[%clk 0:02:33.7]} 13... gxf6 {[%clk
0:02:22.8]} 14. Qd3 {[%clk 0:02:28.7]} 14... Kg7 {[%clk 0:02:06.4]} 15. Be3
{[%clk 0:02:18.6]} 15... Bxe3 {[%clk 0:02:00.9]} 16. fxe3 {[%clk 0:02:15.8]}
16... Bd7 {[%clk 0:01:18.1]} 17. e4 {[%clk 0:02:11.4]} 17... Qb6+ {[%clk
0:01:17.1]} 18. Kh1 {[%clk 0:02:10.9]} 18... d4 {[%clk 0:01:15.9]} 19. e5 {[%clk
0:01:57.5]} 19... fxe5 {[%clk 0:00:54.3]} 20. Nxe5 {[%clk 0:01:57]} 20... Nxe5
{[%clk 0:00:54.6]} 21. Rxe5 {[%clk 0:01:56.7]} 21... dxc3 {[%clk 0:00:55]} 22.
Qxc3 {[%clk 0:01:22.9]} 22... Rf6 {[%clk 0:00:46.4]} 23. h3 {[%clk 0:01:12.5]}
23... Raf8 {[%clk 0:00:42.9]} 24. Ree1 {[%clk 0:01:00.2]} 24... Kg8 {[%clk
0:00:37.7]} 25. Rad1 {[%clk 0:00:54.3]} 25... Bc6 {[%clk 0:00:35.9]} 26. Kh2
{[%clk 0:00:42.2]} 26... Qc7+ {[%clk 0:00:28.5]} 27. Kh1 {[%clk 0:00:32.6]}
27... Rf2 {[%clk 0:00:20.5]} 28. Rg1 {[%clk 0:00:32.1]} 28... R8f3 {[%clk
0:00:14.1]} 29. Rd3 {[%clk 0:00:22.9]} 29... Qg3 {[%clk 0:00:06.4]} 30. Rxf3
{[%clk 0:00:20.3]} 30... Rxf3 {[%clk 0:00:06.7]} 31. Qe1 {[%clk 0:00:17.3]}
31... Qxh3+ {[%clk 0:00:06.2]} 32. gxh3 {[%clk 0:00:17.8]} 32... Rxh3# {[%clk
0:00:07.1]} 0-1